fUSD/lending_fUSD_20260218
["ID","MTS","AMOUNT","RATE_DAILY","PERIOD"]
[405874318,1771377053929,-500.0,0.00017982,2]
[405874319,1771377053939,-300.0,0.00017986,2]
[405874320,1771377053948,-300.0,0.00017986,2]
[405874321,1771377053957,-213969.7776569,0.00017987,2]
[405874322,1771377053966,-4380.9678672,0.00017987,2]
[405874323,1771377053975,-1648.4782044,0.00017987,2]
[405874324,1771377053985,-641909.3329706,0.00017987,2]
[405874325,1771377053994,-206.826734,0.00017987,2]
[405874326,1771377054003,-445.585732,0.00017987,2]
[405874327,1771377054012,-445.585732,0.00017987,2]
[405874328,1771377054021,-445.585732,0.00017987,2]
[405874329,1771377054031,-445.585732,0.00017987,2]
[405874330,1771377054040,-1573.195363,0.00017987,2]
[405874331,1771377054050,-1573.195363,0.00017987,2]
[405874332,1771377054060,-11494.4253971,0.00017987,2]
[405874333,1771377054069,-1573.195363,0.00017987,2]
[405874334,1771377054078,-1573.195363,0.00017987,2]
[405874335,1771377054088,-344.172028,0.00017987,2]
[405874336,1771377054098,-276.993442,0.00017987,2]
[405874337,1771377054107,-344.172028,0.00017987,2]
[405874338,1771377054117,-276.993442,0.00017987,2]
[405874339,1771377054127,-344.172028,0.00017987,2]
[405874340,1771377054136,-276.993442,0.00017987,2]
[405874341,1771377054145,-344.172028,0.00017987,2]
[405874342,1771377054155,-276.993442,0.00017987,2]
[405874343,1771377054165,-311.844149,0.00017987,2]
[405874344,1771377054174,-311.844149,0.00017987,2]
[405874345,1771377054183,-311.844149,0.00017987,2]
[405874346,1771377054193,-311.844149,0.00017987,2]
[405874347,1771377054202,-201.21159718,0.0001799,2]
[405874348,1771377054212,-309.76116333,0.0001799,2]
[405874349,1771377054221,-300.0,0.00017998,2]
[405874350,1771377054231,-300.0,0.00017998,2]
[405874351,1771377054240,-300.0,0.00017999,2]
[405874352,1771377054250,-300.0,0.00017999,2]
[405874353,1771377054259,-200.0,0.00017999,2]
[405874354,1771377054269,-300.0,0.00017999,2]
[405874355,1771377054279,-300.0,0.00017999,2]
[405874356,1771377054288,-666.0,0.00017999,2]
[405874357,1771377054298,-300.0,0.00017999,2]
[405874358,1771377054308,-243.22753519,0.00017999,2]
[405874359,1771377054317,-6947.36368985,0.00017999,2]
[405874360,1771377054327,-300.0,0.00017999,2]
[405874361,1771377054540,-300.0,0.00017999,2]
[405874362,1771377054550,-300.0,0.00017999,2]
[405874363,1771377054560,-666.0,0.00017999,2]
[405874364,1771377054569,-150.0,0.00018,2]
[405874365,1771377054579,-200.0,0.00018,2]
[405874366,1771377054588,-231.713,0.00018,2]
[405874367,1771377054597,-197.764,0.00018,2]
[405874368,1771377054607,-250.0,0.00018,2]
[405874369,1771377054616,-275.559,0.00018,2]
[405874370,1771377054625,-160.03,0.00018,2]
[405874371,1771377054634,-250.0,0.00018,2]
[405874372,1771377054644,-192.151,0.00018,2]
[405874373,1771377054653,-164.867,0.00018,2]
[405874374,1771377054662,-213.324,0.00018,2]
[405874375,1771377054671,-250.0,0.00018,2]
[405874376,1771377054680,-234.143,0.00018,2]
[405874377,1771377054689,-174.0,0.00018,2]
[405874378,1771377054698,-162.702,0.00018,2]
[405874379,1771377054707,-150.0,0.00018,2]
[405874380,1771377054717,-679442.02573486,0.00018,2]
[405874381,1771377054726,-736933.72622837,0.00018,2]
[405874382,1771377055456,-459.039,0.00016869,2]
[405874383,1771377055466,-1000.0,0.00017863,2]
[405874384,1771377055475,-1000.0,0.00017863,2]
[405874385,1771377055485,-1000.0,0.00017863,2]
[405874386,1771377055495,-1000.0,0.00017863,2]
[405874387,1771377055504,-1000.0,0.00017863,2]
[405874388,1771377055513,-1000.0,0.00017863,2]
[405874389,1771377055523,-1151731.5207129,0.00018,2]
[405874390,1771377055532,-74483.28237281,0.00018,2]
[405874391,1771377055541,-2708022.6456377,0.00018,2]
[405874392,1771377055553,-3338.78006525,0.00018,2]
[405874393,1771377055743,-442.6755972,0.00011003,2]
[405874394,1771377055752,-1776.64288714,0.00018,2]
[405874395,1771377055763,-344.0,0.00018,2]
[405874396,1771377055781,-13720.61531494,0.00018,2]
[405874397,1771377055792,-605.23,0.00018,2]
[405874398,1771377056016,-466.53084013,0.00018,2]
[405874399,1771377056029,-1222.0,0.00018,2]
[405874400,1771377056063,-1266.1197357,0.00018,2]
[405874401,1771377056086,-28020.57799511,0.00018,2]
[405874402,1771377056119,-727.594,0.00018,2]
[405874403,1771377056141,-33039.63301629,0.00018,2]
[405874407,1771377851229,-300.0,6.7e-05,2]
[405874408,1771377851258,-1200.0,6.7e-05,2]
[405874409,1771377851285,-153.99,6.7e-05,2]
[405874410,1771377851314,-208.0,6.7e-05,2]
[405874411,1771377851341,-150.0,6.735e-05,2]
[405874412,1771377853508,230.99,6.7e-05,2]
[405874413,1771377866228,151.0,6.733e-05,2]
[405874414,1771377866632,151.0,6.733e-05,2]
[405874416,1771377901203,300.0,6.735e-05,2]
[405874417,1771377901438,1200.0,6.735e-05,2]
[405874420,1771377961489,300.0,6.735e-05,2]
[405874422,1771377976287,532.83482748,6.735e-05,2]
[405874425,1771378021561,150.0,6.735e-05,2]
[405874426,1771378034240,1500.0,6.7e-05,2]
[405874427,1771378081631,300.0,6.735e-05,2]
[405874434,1771378137943,9700.01,6.636e-05,2]
[405874456,1771378201161,1200.0,6.635e-05,2]
[405874457,1771378201521,150.0,6.635e-05,2]
[405874459,1771378228721,159.15615102,6.5e-05,3]
[405874460,1771378231460,-1752.85646203,6.636e-05,2]
[405874462,1771378231471,-106310.69664778,6.636e-05,2]
[405874464,1771378231483,-1254.41808677,6.636e-05,2]
[405874467,1771378231495,-552.05808685,6.636e-05,2]
[405874472,1771378231579,-938.55,6.636e-05,2]
[405874475,1771378233942,220.43857967,6.635e-05,2]
[405874476,1771378234575,323.98164499,6.635e-05,2]
[405874488,1771378238018,-3379491.41071657,6.636e-05,2]
[405874490,1771378238027,-250.0,6.685e-05,2]
[405874492,1771378238036,-1011.76198068,6.734e-05,2]
[405874529,1771378238380,-1001.94912592,6.734e-05,2]
[405874531,1771378238390,-20533.46148321,6.734e-05,2]
[405874533,1771378238400,-213.3367452,6.734e-05,2]
[405874535,1771378238409,-3000.0,6.8e-05,2]
[405874537,1771378238419,-6193.655,6.836e-05,2]
[405874539,1771378238429,-597.476,6.836e-05,2]
[405874541,1771378238438,-4600.0,6.9e-05,2]
[405874543,1771378238448,-2850.0,7e-05,2]
[405874545,1771378238458,-499.99,7e-05,2]
[405874547,1771378238467,-299.99,7e-05,2]
[405874549,1771378238476,-150.99,7e-05,2]
[405874551,1771378238485,-9999.99,7e-05,2]
[405874553,1771378238494,-9999.99,7e-05,2]
[405874555,1771378238503,-9999.99,7e-05,2]
[405874557,1771378238512,-9999.99,7e-05,2]
[405874559,1771378238521,-150.99,7e-05,2]
[405874561,1771378238530,-999.99,7e-05,2]
[405874563,1771378238540,-6100.0,7e-05,2]
[405874565,1771378238549,-1680.0,7.298e-05,2]
[405874567,1771378238558,-255.0,7.298e-05,2]
[405874569,1771378238567,-250.0,7.299e-05,2]
[405874571,1771378238577,-9999.99,7.37e-05,2]
[405874573,1771378238587,-250.0,7.409e-05,2]
[405874575,1771378238596,-193.0,7.409e-05,2]
[405874577,1771378238605,-500.0,7.79e-05,2]
[405874579,1771378238615,-356.0,7.828e-05,2]
[405874581,1771378238624,-530.0,7.843e-05,2]
[405874583,1771378238633,-2351.0,8.028e-05,2]
[405874585,1771378238643,-433.0,8.028e-05,2]
[405874586,1771378238654,-200.0,8.034e-05,2]
[405874587,1771378238663,-1852.42,8.116e-05,2]
[405874588,1771378238672,-382.0,8.142e-05,2]
[405874589,1771378238681,-500.0,8.163e-05,2]
[405874590,1771378238691,-500.0,8.219e-05,2]
[405874591,1771378238700,-500.0,8.219e-05,2]
[405874592,1771378238709,-500.0,8.219e-05,2]
[405874593,1771378238718,-531.45168523,8.219e-05,2]
[405874594,1771378238727,-166.66,8.644e-05,2]
[405874595,1771378238736,-250.0,8.768e-05,2]
[405874596,1771378238745,-576.83,8.788e-05,2]
[405874597,1771378238754,-92673.16,8.798e-05,2]
[405874598,1771378238764,-3292.0,8.831e-05,2]
[405874599,1771378238773,-736.0,8.831e-05,2]
[405874601,1771378238782,-10993.7050651,8.861e-05,2]
[405874602,1771378238792,-286.2,8.893e-05,2]
[405874604,1771378238801,-279.52,8.893e-05,2]
[405874606,1771378238811,-166.66,8.93e-05,2]
[405874608,1771378238820,-500.0,8.964e-05,2]
[405874610,1771378238830,-341.02,9.2e-05,2]
[405874612,1771378238839,-668.62,9.2e-05,2]
[405874614,1771378238854,-1259.59,9.2e-05,2]
[405874616,1771378238863,-2817.4,9.2e-05,2]
[405874618,1771378238873,-2315.16,9.2e-05,2]
[405874620,1771378238882,-1729.95,9.2e-05,2]
[405874622,1771378238894,-768.22,9.2e-05,2]
[405874624,1771378238903,-2885.78535879,9.21e-05,2]
[405874626,1771378238913,-166.66,9.215e-05,2]
[405874628,1771378238923,-500.0,9.238e-05,2]
[405874630,1771378238932,-393.71,9.244e-05,2]
[405874632,1771378238941,-537.1511723,9.433e-05,2]
[405874634,1771378238950,-166.66,9.5e-05,2]
[405874636,1771378238959,-500.0,9.512e-05,2]
[405874638,1771378238969,-334.95432698,9.598e-05,2]
[405874640,1771378238979,-9999.99,9.67e-05,2]
[405874642,1771378238988,-14381.39,9.67e-05,2]
[405874644,1771378238997,-13062.74,9.67e-05,2]
[405874646,1771378239007,-1401.0,9.67e-05,2]
[405874648,1771378239016,-1252.0,9.713e-05,2]
[405874650,1771378239025,-4609.0,9.714e-05,2]
[405874652,1771378239035,-393.71,9.758e-05,2]
[405874654,1771378239044,-166.66,9.786e-05,2]
[405874656,1771378239054,-500.0,9.786e-05,2]
[405874659,1771378239063,-150.31509327,9.845e-05,3]
[405874661,1771378239072,-500.0,9.845e-05,3]
[405874662,1771378239082,-500.0,9.845e-05,3]
[405874665,1771378239091,-589.0,9.845e-05,3]
[405874667,1771378239102,-150.0,9.845e-05,3]
[405874669,1771378239111,-500.0,9.845e-05,3]
[405874671,1771378239121,-500.0,9.845e-05,3]
[405874672,1771378239130,-4242.0,9.845e-05,3]
[405874674,1771378239141,-150.0,9.845e-05,3]
[405874676,1771378239150,-500.0,9.845e-05,3]
[405874678,1771378239160,-500.0,9.845e-05,3]
[405874680,1771378239170,-500.0,9.845e-05,3]
[405874683,1771378239181,-150.0,9.845e-05,3]
[405874685,1771378239192,-500.0,9.845e-05,3]
[405874687,1771378239204,-500.0,9.845e-05,3]
[405874689,1771378239215,-500.0,9.845e-05,3]
[405874691,1771378239226,-500.0,9.845e-05,3]
[405874693,1771378239242,-150.0,9.845e-05,2]
[405874696,1771378239254,-500.0,9.845e-05,3]
[405874698,1771378239264,-150.0,9.845e-05,2]
[405874700,1771378239274,-150.0,9.845e-05,2]
[405874702,1771378239284,-500.0,9.845e-05,3]
[405874703,1771378239294,-500.0,9.845e-05,3]
[405874704,1771378239308,-500.0,9.845e-05,3]
[405874705,1771378239325,-500.0,9.9e-05,3]
[405874706,1771378239335,-500.0,9.9e-05,3]
[405874707,1771378239345,-589.0,9.9e-05,3]
[405874708,1771378239355,-150.0,9.9e-05,3]
[405874709,1771378239364,-500.0,9.9e-05,3]
[405874710,1771378239376,-500.0,9.9e-05,3]
[405874711,1771378239386,-4242.0,9.9e-05,3]
[405874712,1771378239396,-151.2254874,9.9e-05,3]
[405874713,1771378239406,-500.0,9.9e-05,3]
[405874714,1771378239416,-500.0,9.9e-05,3]
[405874715,1771378239425,-500.0,9.9e-05,3]
[405874716,1771378239436,-150.07216309,9.9e-05,3]
[405874717,1771378239447,-500.0,9.9e-05,3]
[405874718,1771378239458,-500.0,9.9e-05,3]
[405874719,1771378239468,-500.0,9.9e-05,3]
[405874720,1771378239478,-500.0,9.9e-05,3]
[405874721,1771378239489,-500.0,9.9e-05,3]
[405874722,1771378239499,-500.0,9.9e-05,3]
[405874723,1771378239510,-502.16866536,9.9e-05,3]
[405874724,1771378239520,-500.0,9.9e-05,3]
[405874725,1771378239531,-500.0,9.955e-05,3]
[405874726,1771378239543,-616.5683879,9.955e-05,3]
[405874727,1771378239554,-589.0,9.955e-05,3]
[405874728,1771378239565,-201.09695119,9.955e-05,3]
[405874729,1771378239575,-500.0,9.955e-05,3]
[405874730,1771378239584,-500.0,9.955e-05,3]
[405874731,1771378239594,-4242.0,9.955e-05,3]
[405874732,1771378239604,-500.0,9.955e-05,3]
[405874733,1771378239613,-500.0,9.955e-05,3]
[405874734,1771378239623,-500.0,9.955e-05,3]
[405874735,1771378239636,-500.0,9.955e-05,3]
[405874736,1771378239647,-537.18600864,9.955e-05,3]
[405874737,1771378239656,-500.0,9.955e-05,3]
[405874738,1771378239666,-500.0,9.955e-05,3]
[405874739,1771378239676,-500.0,9.955e-05,3]
[405874740,1771378239686,-537.36614029,9.955e-05,3]
[405874741,1771378239696,-500.0,9.955e-05,3]
[405874742,1771378239705,-898.32890406,0.0001,2]
[405874743,1771378239715,-150.0,0.0001,2]
[405874744,1771378239724,-1009.2,0.0001,2]
[405874745,1771378239735,-7700.0,0.0001,3]
[405874746,1771378239744,-151.0,0.0001,2]
[405874747,1771378239755,-151.0,0.0001,2]
[405874749,1771378239764,-151.0,0.0001,2]
[405874750,1771378239774,-151.0,0.0001,2]
[405874751,1771378239784,-151.0,0.0001,2]
[405874752,1771378239794,-151.0,0.0001,2]
[405874753,1771378239803,-151.0,0.0001,2]
[405874754,1771378239813,-151.0,0.0001,2]
[405874755,1771378239823,-151.0,0.0001,2]
[405874756,1771378239832,-151.0,0.0001,2]
[405874757,1771378239842,-151.0,0.0001,2]
[405874758,1771378239852,-151.0,0.0001,2]
[405874759,1771378239862,-151.0,0.0001,2]
[405874760,1771378239872,-151.0,0.0001,2]
[405874761,1771378239882,-151.0,0.0001,2]
[405874762,1771378239892,-151.0,0.0001,2]
[405874763,1771378239901,-151.0,0.0001,2]
[405874764,1771378239911,-151.0,0.0001,2]
[405874765,1771378239920,-151.0,0.0001,2]
[405874766,1771378239930,-151.0,0.0001,2]
[405874767,1771378239939,-1966.2237209,0.0001,2]
[405874768,1771378239949,-22859.65696457,0.0001,2]
[405874769,1771378239958,-1160.76195355,0.0001,2]
[405874770,1771378239968,-1961.28725068,0.0001,2]
[405874771,1771378239977,-1961.28725068,0.0001,2]
[405874772,1771378239987,-500.0,0.00010009,3]
[405874773,1771378239997,-589.0,0.00010009,3]
[405874774,1771378240007,-500.0,0.00010009,3]
[405874775,1771378240016,-500.0,0.00010009,3]
[405874776,1771378240026,-4242.0,0.00010009,3]
[405874777,1771378240036,-500.0,0.00010009,3]
[405874778,1771378240045,-510.76125773,0.00010009,3]
[405874779,1771378240055,-500.0,0.00010009,3]
[405874780,1771378240065,-500.0,0.00010009,3]
[405874781,1771378240074,-500.0,0.00010009,3]
[405874782,1771378240084,-500.0,0.00010009,3]
[405874783,1771378240094,-500.0,0.00010009,3]
[405874784,1771378240104,-500.0,0.00010009,3]
[405874785,1771378240114,-500.0,0.0001006,2]
[405874786,1771378240124,-500.0,0.00010064,3]
[405874787,1771378240134,-589.0,0.00010064,3]
[405874788,1771378240148,-500.0,0.00010064,3]
[405874789,1771378240158,-500.0,0.00010064,3]
[405874790,1771378240168,-4242.0,0.00010064,3]
[405874791,1771378240178,-329.95129651,0.00010064,3]
[405874792,1771378240188,-500.0,0.00010064,3]
[405874793,1771378240198,-500.0,0.00010064,3]
[405874794,1771378240208,-500.0,0.00010064,3]
[405874795,1771378240222,-500.0,0.00010064,3]
[405874796,1771378240231,-500.0,0.00010064,3]
[405874797,1771378240242,-500.0,0.00010064,3]
[405874798,1771378240253,-166.66,0.00010071,2]
[405874799,1771378240262,-500.0,0.00010119,3]
[405874800,1771378240272,-589.0,0.00010119,3]
[405874801,1771378240282,-500.33776257,0.00010119,3]
[405874802,1771378240293,-500.0,0.00010119,3]
[405874803,1771378240303,-4242.0,0.00010119,3]
[405874804,1771378240312,-500.0,0.00010119,3]
[405874805,1771378240321,-500.0,0.00010119,3]
[405874806,1771378240331,-500.0,0.00010119,3]
[405874807,1771378240341,-500.0,0.00010119,3]
[405874808,1771378240352,-500.0,0.00010119,3]
[405874809,1771378240362,-500.0,0.00010119,3]
[405874810,1771378240371,-500.0,0.00010174,3]
[405874811,1771378240382,-589.0,0.00010174,3]
[405874812,1771378240395,-500.0,0.00010174,3]
[405874813,1771378240405,-4242.0,0.00010174,3]
[405874814,1771378240415,-500.0,0.00010174,3]
[405874815,1771378240424,-500.0,0.00010174,3]
[405874816,1771378240434,-621.12228144,0.00010174,3]
[405874817,1771378240444,-500.0,0.00010174,3]
[405874818,1771378240454,-500.0,0.00010174,3]
[405874819,1771378240464,-477.2533736,0.00010174,3]
[405874820,1771378240473,-500.0,0.00010229,3]
[405874821,1771378240482,-589.0,0.00010229,3]
[405874822,1771378240492,-500.0,0.00010229,3]
[405874823,1771378240502,-4242.0,0.00010229,3]
[405874824,1771378240511,-500.0,0.00010229,3]
[405874825,1771378240520,-500.0,0.00010229,3]
[405874826,1771378240530,-500.0,0.00010229,3]
[405874827,1771378240539,-500.0,0.00010229,3]
[405874828,1771378240549,-393.71,0.00010271,2]
[405874829,1771378240558,-1009.2,0.00010274,2]
[405874830,1771378240568,-500.0,0.00010283,3]
[405874831,1771378240577,-589.0,0.00010283,3]
[405874832,1771378240587,-500.0,0.00010283,3]
[405874833,1771378240600,-4242.0,0.00010283,3]
[405874834,1771378240610,-500.0,0.00010283,3]
[405874835,1771378240620,-500.0,0.00010283,3]
[405874836,1771378240630,-500.0,0.00010283,3]
[405874837,1771378240639,-500.0,0.00010283,3]
[405874838,1771378240654,-21155.78997856,0.00010296,2]
[405874839,1771378240664,-500.0,0.00010334,2]
[405874840,1771378240675,-500.0,0.00010338,3]
[405874841,1771378240685,-589.0,0.00010338,3]
[405874842,1771378240697,-500.0,0.00010338,3]
[405874843,1771378240706,-4242.0,0.00010338,3]
[405874844,1771378240716,-500.0,0.00010338,3]
[405874845,1771378240727,-500.0,0.00010338,3]
[405874846,1771378240736,-500.0,0.00010338,3]
[405874847,1771378240746,-500.0,0.00010338,3]
[405874848,1771378240756,-500.0,0.00010393,3]
[405874849,1771378240766,-589.0,0.00010393,3]
[405874850,1771378240775,-500.0,0.00010393,3]
[405874851,1771378240785,-4242.0,0.00010393,3]
[405874852,1771378240795,-500.0,0.00010393,3]
[405874853,1771378240804,-500.0,0.00010393,3]
[405874854,1771378240814,-500.0,0.00010393,3]
[405874855,1771378240824,-500.0,0.00010393,3]
[405874856,1771378240833,-500.0,0.00010448,3]
[405874857,1771378240843,-589.0,0.00010448,3]
[405874858,1771378240852,-500.0,0.00010448,3]
[405874859,1771378240862,-4242.0,0.00010448,3]
[405874860,1771378240872,-500.0,0.00010448,3]
[405874861,1771378240882,-500.0,0.00010448,3]
[405874862,1771378240893,-500.0,0.00010448,3]
[405874863,1771378240903,-500.0,0.00010448,3]
[405874864,1771378240912,-500.0,0.00010503,3]
[405874865,1771378240921,-589.0,0.00010503,3]
[405874866,1771378240931,-500.0,0.00010503,3]
[405874867,1771378240940,-4242.0,0.00010503,3]
[405874868,1771378240950,-500.0,0.00010503,3]
[405874869,1771378240960,-500.0,0.00010503,3]
[405874870,1771378240969,-500.0,0.00010503,3]
[405874871,1771378240979,-500.0,0.00010503,3]
[405874872,1771378240998,-1009.2,0.00010548,2]
[405874873,1771378241008,-498.26652801,0.00010557,3]
[405874874,1771378241018,-589.0,0.00010557,3]
[405874875,1771378241029,-500.0,0.00010557,3]
[405874876,1771378241039,-4242.0,0.00010557,3]
[405874877,1771378241049,-500.0,0.00010557,3]
[405874878,1771378241059,-442.49812506,0.00010557,3]
[405874879,1771378241069,-500.0,0.00010557,3]
[405874880,1771378241079,-500.0,0.00010557,3]
[405874881,1771378241090,-500.0,0.00010608,2]
[405874882,1771378241100,-589.0,0.00010612,3]
[405874883,1771378241111,-500.0,0.00010612,3]
[405874884,1771378241120,-4242.0,0.00010612,3]
[405874885,1771378241131,-500.0,0.00010612,3]
[405874886,1771378241143,-500.0,0.00010612,3]
[405874887,1771378241153,-500.0,0.00010612,3]
[405874888,1771378241163,-433.69347785,0.0001062,2]
[405874889,1771378241172,-150.0,0.0001062,2]
[405874890,1771378241183,-589.0,0.00010667,3]
[405874891,1771378241193,-500.0,0.00010667,3]
[405874892,1771378241207,-4242.0,0.00010667,3]
[405874893,1771378241218,-500.0,0.00010667,3]
[405874894,1771378241230,-500.0,0.00010667,3]
[405874895,1771378241240,-500.0,0.00010667,3]
[405874896,1771378241252,-6453.0,0.00010686,2]
[405874897,1771378241262,-2129.0,0.00010689,2]
[405874898,1771378241272,-269.06948461,0.000107,2]
[405874899,1771378241282,-589.0,0.00010722,3]
[405874900,1771378241291,-500.0,0.00010722,3]
[405874901,1771378241301,-4242.0,0.00010722,3]
[405874902,1771378241313,-266.33885806,0.00010722,3]
[405874903,1771378241325,-500.0,0.00010722,3]
[405874904,1771378241336,-633.0942881,0.00010722,3]
[405874905,1771378241350,-589.0,0.00010777,3]
[405874906,1771378241361,-500.0,0.00010777,3]
[405874907,1771378241371,-4242.0,0.00010777,3]
[405874908,1771378241381,-514.37004621,0.00010777,3]
[405874909,1771378241394,-393.71,0.00010785,2]
[405874910,1771378241403,-1009.2,0.00010822,2]
[405874911,1771378241413,-237.28842339,0.00010831,3]
[405874912,1771378241422,-500.0,0.00010831,3]
[405874913,1771378241432,-214.0121963,0.00010831,3]
[405874914,1771378241443,-500.0,0.00010831,3]
[405874915,1771378241454,-500.0,0.00010831,3]
[405874916,1771378241464,-500.0,0.00010831,3]
[405874917,1771378241475,-589.0,0.00010831,3]
[405874918,1771378241486,-280.68179644,0.00010831,3]
[405874919,1771378241496,-4242.0,0.00010831,3]
[405874920,1771378241507,-500.0,0.00010882,2]
[405874921,1771378241518,-500.0,0.00010886,3]
[405874922,1771378241528,-500.0,0.00010886,3]
[405874923,1771378241539,-500.0,0.00010886,3]
[405874924,1771378241549,-500.0,0.00010886,3]
[405874925,1771378241560,-589.0,0.00010886,3]
[405874926,1771378241572,-4242.0,0.00010886,3]
[405874927,1771378241583,-6997.02475386,0.000109,2]
[405874928,1771378241593,-6997.02475385,0.000109,2]
[405874929,1771378241603,-6997.02475385,0.000109,2]
[405874930,1771378241614,-500.0,0.00010941,3]
[405874931,1771378241624,-500.0,0.00010941,3]
[405874932,1771378241634,-500.0,0.00010941,3]
[405874933,1771378241645,-500.0,0.00010941,3]
[405874934,1771378241654,-589.0,0.00010941,3]
[405874935,1771378241664,-4242.0,0.00010941,3]
[405874936,1771378241674,-16891.69,0.00010959,2]
[405874937,1771378241685,-166.66,0.00010959,2]
[405874938,1771378241695,-150.0,0.00010959,2]
[405874939,1771378241710,-500.0,0.00010995,3]
[405874940,1771378241720,-500.0,0.00010995,3]
[405874941,1771378241729,-500.0,0.00010995,3]
[405874942,1771378241739,-500.0,0.00010995,3]
[405874943,1771378241749,-589.0,0.00010996,3]
[405874944,1771378241759,-4242.0,0.00010996,3]
[405874945,1771378241768,-6034.81891893,0.00011,2]
[405874946,1771378241778,-500.0,0.0001105,3]
[405874947,1771378241788,-500.0,0.0001105,3]
[405874948,1771378241798,-500.0,0.0001105,3]
[405874949,1771378241807,-500.0,0.0001105,3]
[405874950,1771378241817,-589.0,0.0001105,3]
[405874951,1771378241827,-4242.0,0.0001105,3]
[405874952,1771378241837,-166.66,0.00011068,2]
[405874953,1771378241846,-1009.2,0.00011096,2]
[405874954,1771378241856,-500.0,0.00011105,3]
[405874955,1771378241866,-500.0,0.00011105,3]
[405874956,1771378241875,-500.0,0.00011105,3]
[405874957,1771378241884,-500.0,0.00011105,3]
[405874958,1771378241898,-609.2655769,0.00011105,3]
[405874959,1771378241907,-4242.729734,0.00011105,3]
[405874960,1771378241917,-1050.0,0.00011148,7]
[405874961,1771378241927,-500.0,0.00011156,2]
[405874962,1771378241936,-500.0,0.0001116,3]
[405874963,1771378241946,-464.38268717,0.0001116,3]
[405874964,1771378241955,-500.0,0.0001116,3]
[405874965,1771378241964,-500.0,0.0001116,3]
[405874966,1771378241976,-166.66,0.00011178,2]
[405874967,1771378241986,-500.0,0.00011215,3]
[405874968,1771378241996,-500.0,0.00011215,3]
[405874969,1771378242007,-500.0,0.00011215,3]
[405874970,1771378242018,-500.0,0.00011269,3]
[405874971,1771378242029,-500.0,0.00011269,3]
[405874972,1771378242040,-500.0,0.00011269,3]
[405874973,1771378242051,-166.66,0.00011288,2]
[405874974,1771378242061,-393.71,0.00011298,2]
[405874975,1771378242072,-500.0,0.00011324,3]
[405874976,1771378242083,-500.0,0.00011324,3]
[405874977,1771378242098,-500.0,0.00011324,3]
[405874978,1771378242109,-1009.2,0.0001137,2]
[405874979,1771378242120,-500.0,0.00011379,3]
[405874980,1771378242131,-500.0,0.00011379,3]
[405874981,1771378242141,-500.0,0.00011379,3]
[405874982,1771378242151,-166.66,0.00011397,2]
[405874983,1771378242161,-500.0,0.0001143,2]
[405874984,1771378242170,-500.0,0.00011434,3]
[405874985,1771378242181,-500.0,0.00011434,3]
[405874986,1771378242192,-361.9355564,0.00011434,3]
[405874987,1771378242207,-6997.02475385,0.00011434,2]
[405874988,1771378242217,-224.65460803,0.00011489,3]
[405874989,1771378242228,-500.0,0.00011489,3]
[405874990,1771378242238,-166.66,0.00011507,2]
[405874991,1771378242250,-500.0,0.00011543,3]
[405874992,1771378242261,-611.76249723,0.00011598,3]
[405874993,1771378242271,-173.355935,0.00011602,2]
[405874994,1771378242286,-1009.2,0.00011644,2]